Cogmind - Beta 16 @@@ ROGUE MODE // 2025.11.23 @ 08:13:00 Player: puppuppit Result: Destroyed by 6S-H0T with 6S-H0T's Six Shooter Performance ------------- Evolutions (2) 1000 Regions Visited (10) 2000 Robots Destroyed (311) 1555 Value Destroyed (9440) 9440 Prototype IDs (10) 200 Alien Tech Used (0) 0 Bonus (2187) 2187 TOTAL SCORE: 16382 Bonus ------- High Alert Combat Kills 1775 Follower Combat Kills 245 Entered Garrisons 200 Friendly Fire -33 Cogmind --------- Core Integrity 0/550 Matter 229/300 Energy 50/100 System Corruption 2% Temperature Cool (0) Movement Treading (243) Ox1 Location -8/Storage Parts ------- > --- POWER (1) -------- (None) > --- PROPULSION (3) --- Light Treads Light Treads Armored Treads > --- UTILITY (4) ------ High-capacity Storage Unit Improved Propulsion Shielding Improved Medium Armor Plating Improved Medium Armor Plating > --- WEAPON (3) ------- Bore Cannon > --- INVENTORY (20) --- Light Fission Core Improved Cooling System High-capacity Matter Pod (200) High-capacity Matter Pod (200) Armor Integrity Analyzer Recoil Stabilizer Improved Weapon Shielding Reflective Plating Hacking Suite Light Cannon Flak Cannon EMP Blaster Improved Grenade Launcher Peak State ------------ > --- POWER ------------ Light Angular Momentum Engine > --- PROPULSION ------- Light Treads Light Treads Armored Treads > --- UTILITY ---------- High-capacity Storage Unit Improved Medium Armor Plating Hacking Suite Hacking Suite > --- WEAPON ----------- Assault Cannon Assault Cannon Flak Cannon > --- INVENTORY -------- Light Fission Core Improved Treads Improved Treads Improved Cooling System High-capacity Matter Pod High-capacity Matter Pod Improved Propulsion Shielding Improved Weapon Shielding Improved Medium Armor Plating Improved Medium Armor Plating Reflective Plating Hacking Suite High-powered Tractor Beam Improved Assault Rifle Improved Assault Rifle Light Cannon Improved Light Cannon Slug Cannon EMP Blaster Improved Grenade Launcher [Rating: 35] Favorites ----------- Power Light Nuclear Core Engine Light Ion Engine Power Core Light Nuclear Core Propulsion Light Treads Treads Light Treads Hover Unit Improved Hover Unit Utility Hacking Suite Device Shield Generator Storage High-capacity Storage Unit Processor Improved Targeting Computer Hackware Hacking Suite Protection Improved Medium Armor Plating Weapon Improved Assault Rifle Energy Gun EM Pulse Gun Ballistic Gun Improved Assault Rifle Ballistic Cannon Assault Cannon Launcher EMP Blaster Build | -11 -10 -10 -9 -9 -9 -8 -8 -8 -8 -8 ------- Run | Yrd Mat Min Mat Min Exi Min Mat Gar Mat Sto Slots Evolved 4 | . . . 2 . . . 2 . . . Power . | . . . . . . . . . . . Propulsion 1 | . . . . . . . 1 . . . Utility 2 | . . . 2 . . . . . . . Weapon 1 | . . . . . . . 1 . . . Parts Attached 118 | 7 10 2 32 4 2 3 26 14 15 3 Power 19 | 1 1 1 7 . . 1 3 5 . . Engine 13 | 1 1 1 7 . . 1 1 1 . . Core 6 | . . . . . . . 2 4 . . Reactor . | . . . . . . . . . . . Propulsion 34 | 2 . . 9 2 1 . 6 5 7 2 Treads 32 | 2 . . 9 2 1 . 5 5 7 1 Leg . | . . . . . . . . . . . Wheel . | . . . . . . . . . . . Hover 2 | . . . . . . . 1 . . 1 Flight . | . . . . . . . . . . . Utility 35 | 2 5 . 10 1 1 1 6 2 6 1 Device 7 | 1 1 . 1 . . . 2 1 1 . Storage 11 | 1 2 . 4 . 1 . 1 . 2 . Processor 2 | . . . 1 . . 1 . . . . Hackware 6 | . 2 . 2 . . . 1 . 1 . Protection 9 | . . . 2 1 . . 2 1 2 1 Artifact . | . . . . . . . . . . . Weapon 30 | 2 4 1 6 1 . 1 11 2 2 . Energy Gun 1 | 1 . . . . . . . . . . Energy Cannon . | . . . . . . . . . . . Ballistic Gun 13 | 1 3 1 4 . . 1 3 . . . Ballistic Cannon 10 | . . . . 1 . . 6 1 2 . Launcher 6 | . 1 . 2 . . . 2 1 . . Special Weapon . | . . . . . . . . . . . Impact Weapon . | . . . . . . . . . . . Slashing Weapon . | . . . . . . . . . . . Piercing Weapon . | . . . . . . . . . . . Special Melee Weapon . | . . . . . . . . . . . Unidentified Prototypes 2 | . . . 1 . . . 1 . . . Parts Lost 28 | . . . 6 . . 3 8 5 4 2 Power 3 | . . . . . . . 1 1 . 1 Propulsion 10 | . . . 3 . . . 3 2 2 . Utility 6 | . . . 2 . . 1 1 . 1 1 Weapon 9 | . . . 1 . . 2 3 2 1 . Highest Loss Streak 4 | . . . 4 . . 2 2 2 3 2 To Critical Strikes . | . . . . . . . . . . . Average Backups 16 | . 8 9 16 15 15 17 19 19 19 15 Power . | . . . . . 1 2 1 1 1 1 Propulsion 2 | . . 1 3 4 3 4 2 1 2 . Utility 6 | . 3 4 3 4 4 4 8 10 10 9 Weapon 6 | . 4 3 9 7 6 5 6 6 5 4 Tool/Special . | . . . . . . . . . . . Unused Backups 43 | . 6 . 11 3 2 . 9 4 1 7 Power 3 | . . . 1 . . . 1 . . 1 Propulsion 1 | . . . . . . . 1 . . . Utility 22 | . 4 . 1 3 2 . 4 2 . 6 Weapon 14 | . 1 . 8 . . . 2 2 1 . Tool/Special 3 | . 1 . 1 . . . 1 . . . Average Slot Usage (%) 99 | . 99 100 98 100 100 99 99 98 99 99 Engine 8 | . 14 14 11 11 11 11 3 1 8 8 Core 2 | . . . . . . . 5 6 . . Treads 25 | . 27 28 21 22 22 22 26 26 26 26 Device 2 | . 4 . 6 . . . . . . 8 Storage 10 | . 14 14 11 11 11 11 9 9 9 9 Hackware 19 | . 9 14 23 22 22 22 22 18 24 8 Protection 3 | . . . 1 11 11 . 3 8 1 9 Ballistic Gun 14 | . 27 28 21 21 22 21 8 . . . Ballistic Cannon 10 | . . . . . . . 18 26 26 26 Peak Build Rating 35 | 9 13 12 24 23 24 24 35 32 34 34 Average Rating 23 | 7 11 11 21 22 23 23 29 29 28 31 On Entrance 19 | . 9 12 12 22 23 24 24 32 27 32 Avg Prop Armor Cover (%) . | . . . . . . . . . . . Naked Turns . | . . . . . . . . . . . Heaviest Build 96 | 13 19 19 96 43 62 62 72 68 75 74 Greatest Support 63 | 40 40 40 43 40 40 40 63 63 60 60 Greatest Overweight (x) 4 | . . . 4 1 1 1 1 1 1 1 Average Overweight (x) . | . . . . . 1 1 . . . 1 Largest Inventory Capacity 25 | 8 10 10 25 15 20 20 20 20 20 20 Average Capacity 17 | 7 9 10 18 15 18 20 20 20 20 20 Most Carried 25 | 3 10 10 25 15 19 20 20 20 20 17 Average Carried 16 | . 8 9 16 14 15 17 19 19 19 16 Final Capacity 20 | 8 10 10 15 15 20 20 20 20 20 20 Final Carried 20 | 3 10 10 15 15 19 20 20 20 16 13 Class Distribution -------------------- 29% | Hacker-Mutant 21% | Scavenger-Tank 18% | Hacker-Gunner 17% | Mutant 6% | Scavenger-Mutant Dominant Class ---------------- Mutant | -10/Materials Mutant | -10/Mines Hacker-Mutant | -9/Materials Hacker-Mutant | -9/Mines Hacker-Mutant | -9/Exiles Scavenger-Mutant | -8/Mines Hacker-Gunner | -8/Materials Scavenger-Tank | -8/Garrison Hacker-Gunner | -8/Materials Tank | -8/Storage Resources | -11 -10 -10 -9 -9 -9 -8 -8 -8 -8 -8 ----------- Run | Yrd Mat Min Mat Min Exi Min Mat Gar Mat Sto Matter Collected 9837 | 327 1271 260 2020 299 60 284 2333 1285 1230 468 Remotely 663 | . . . . . . . . . 195 468 Salvage Created 10848 | 187 1142 229 2741 360 . 369 2949 947 1543 381 Parts 596 | 13 70 11 180 20 . 14 159 38 68 23 Haulers Intercepted 17 | . 2 . 4 . . . 6 . 4 1 Recyclers Shooed 13 | . 1 2 4 . . 1 2 . 2 1 Parts Field Recycled . | . . . . . . . . . . . Retrieved Matter . | . . . . . . . . . . . Parts Self-Destructed . | . . . . . . . . . . . Prevented . | . . . . . . . . . . . Parts Restored . | . . . . . . . . . . . Kills | -11 -10 -10 -9 -9 -9 -8 -8 -8 -8 -8 ------- Run | Yrd Mat Min Mat Min Exi Min Mat Gar Mat Sto Combat Hostiles Destroyed 196 | . 13 6 51 10 . 6 48 28 26 8 Melee 1 | . . 1 . . . . . . . . Guns 74 | . 6 4 38 4 . 3 19 . . . Cannons 75 | . . . . . . 1 23 24 19 8 AOE 46 | . 7 1 13 6 . 2 6 4 7 . Classes Destroyed 17 | 3 6 . 4 1 . 1 1 1 . . Worker 23 | 2 3 . 6 2 . 1 8 . 1 . Builder 10 | . 1 . 4 . . . 3 . 2 . Tunneler 8 | 4 . . . 1 . 2 1 . . . Hauler 17 | . 2 . 4 . . . 6 . 4 1 Recycler 36 | 1 9 2 4 3 . 2 8 . 6 1 Mechanic 6 | . . . 3 . . . 1 . 2 . Operator 5 | . 2 . 1 . . . 1 . . 1 Watcher 17 | . 3 . 5 . . . 5 . 3 1 Swarmer 25 | . 6 6 3 . . 3 4 . 3 . Grunt 121 | . 7 . 37 2 . 2 35 18 15 5 Brawler 5 | . . . 1 . . . . 3 . 1 Duelist 5 | . . . . . . . . 2 3 . Protector 1 | . . . 1 . . . . . . . Sentry 26 | . . . 9 . . . 8 3 4 2 Hunter 4 | . . . . . . 1 . 2 1 . Heavy 1 | . . . . . . . 1 . . . Assembled 7 | . . . . 7 . . . . . . Best Kill Streak 8 | 5 3 3 5 5 . 3 7 3 8 6 Combat Bots Only 6 | . 3 3 5 4 . 3 4 3 6 4 Max Kills in Single Turn 4 | 2 3 1 3 4 . 2 4 2 4 1 Gunslinging 1 | . . . . . . . 1 . . . Exploded 4 | . 3 1 3 4 . 2 3 2 3 . Melee 1 | . . 1 . . . . . . . . Uniques/NPCs Destroyed 1 | . . . . 1 . . . . . . YI-UF0 (-9/Mines) Combat | -11 -10 -10 -9 -9 -9 -8 -8 -8 -8 -8 -------- Run | Yrd Mat Min Mat Min Exi Min Mat Gar Mat Sto Hostile Shots Fired 732 | . 38 24 223 25 . 40 175 78 78 51 Missed 194 | . 18 6 67 5 . 11 43 12 22 10 Hits 538 | . 20 18 156 20 . 29 132 66 56 41 Melee 4 | . . . . . . . . 4 . . Projectile 534 | . 20 18 156 20 . 29 132 62 56 41 AOE 4 | . . . . 4 . . . . . . Critical Strikes 40 | . . . 9 1 . 3 6 2 11 8 Damage Taken 8338 | 24 306 137 1734 448 . 459 2364 1056 1053 757 Core 932 | . 26 46 193 71 . 39 221 43 105 188 Absorbed by Shields 358 | . . . 346 . . . . 12 . . Redirected to Shielding 24 | . . . . . . . . . . 24 Ignored by Resistances 52 | . . . . . . . . 52 . . Regen/Repaired (Parts) 1262 | . 170 . 328 . . . 262 . 388 114 Core Remaining (%) 65 | 100 . 71 . . . 24 . . . . Volleys Fired 690 | 19 88 25 168 31 . 28 156 84 63 28 Largest 3 | 2 2 2 2 2 . 2 3 3 3 3 Hottest 122 | 60 46 46 56 63 . 63 111 111 122 114 Shots Fired 1588 | 38 172 50 332 54 . 55 460 194 160 73 Gun 875 | 38 167 49 317 45 . 52 207 . . . Cannon 650 | . . . . 1 . 2 238 183 153 73 Launcher 63 | . 5 1 15 8 . 1 15 11 7 . Special . | . . . . . . . . . . . Kinetic 1506 | 19 167 49 317 46 . 54 445 183 153 73 Thermal . | . . . . . . . . . . . Explosive 38 | . 5 1 15 8 . 1 3 3 2 . Electromagnetic 44 | 19 . . . . . . 12 8 5 . Robot Hit Streak 23 | 6 9 5 23 16 . 12 19 9 12 9 Robot Miss Streak 8 | 3 7 7 3 2 . 3 6 4 8 8 Penetration Max . | . . . . . . . . . . . Secondary Targets 8 | . 1 2 2 . . . 3 . . . Max Gunslinging Chain 1 | . 1 1 1 . . . 1 . . . Shots Hit Robots 973 | 21 92 25 229 36 . 38 271 111 105 45 Core Hits 589 | 8 46 9 118 22 . 13 135 73 122 43 Critical Kills 8 | . . . 3 1 . . 2 . 1 1 Critical Parts Destroyed 3 | . 3 . . . . . . . . . Critical Strikes 25 | 1 3 . 3 1 . . 9 4 3 1 Destroy 11 | . 3 . 3 1 . . 2 . 1 1 Blast 13 | . . . . . . . 7 4 2 . Corrupt 1 | 1 . . . . . . . . . . Melee Attacks . | . . . . . . . . . . . Impact . | . . . . . . . . . . . Slashing . | . . . . . . . . . . . Piercing . | . . . . . . . . . . . Sneak Attacks . | . . . . . . . . . . . Combat Hostiles . | . . . . . . . . . . . Follow-up Attacks . | . . . . . . . . . . . Damage Inflicted 22192 | 314 1834 406 5222 864 . 713 5990 2876 3025 948 Guns 8831 | 286 1416 355 3583 537 . 517 2137 . . . Cannons 8598 | . . . . . . 40 2965 2435 2210 948 Explosions 4740 | 28 418 48 1619 327 . 156 888 441 815 . Melee . | . . . . . . . . . . . Ramming 23 | . . 3 20 . . . . . . . Kinetic 17267 | 124 1416 355 3583 537 . 557 5102 2435 2210 948 Thermal 487 | 28 . . . . . . 225 . 234 . Explosive 3000 | . 418 48 1416 327 . 156 228 201 206 . Electromagnetic 1415 | 162 . . 203 . . . 435 240 375 . Impact . | . . . . . . . . . . . Slashing . | . . . . . . . . . . . Piercing . | . . . . . . . . . . . Highest Corruption 2 | . 1 1 . . . . 2 2 2 2 Average Corruption 1 | . 1 1 . . . . 1 2 2 2 Corruption Purged . | . . . . . . . . . . . Corruption Blocked . | . . . . . . . . . . . Effects 121 | . 2 9 . . . . 41 39 23 7 Message Errors 33 | . . 3 . . . . 7 13 8 2 Matter Fused 21 | . . 2 . . . . 6 8 3 2 Heat Flow Errors 8 | . . . . . . . 5 2 1 . Energy Discharges 13 | . . . . . . . 8 3 2 . Parts Rejected 1 | . . . . . . . . 1 . . Parts Fused 1 | . . . . . . . 1 . . . Data Loss (minor) 19 | . . 1 . . . . 6 5 4 3 Data Loss (major) 8 | . 1 1 . . . . 2 4 . . Misfires 8 | . 1 1 . . . . 2 2 2 . Alerts 5 | . . 1 . . . . 2 1 1 . Weapon Failures 4 | . . . . . . . 2 . 2 . Overload Shots . | . . . . . . . . . . . Overflow Damage 298 | . 2 . 34 41 . . 174 26 15 6 Projectiles 112 | . . . . . . . 68 26 12 6 Explosions 186 | . 2 . 34 41 . . 106 . 3 . Melee . | . . . . . . . . . . . Knockbacks 106 | . . . . . . . 25 36 22 23 Impact . | . . . . . . . . . . . Kinetic 100 | . . . . . . . 24 32 22 22 Secondary 6 | . . . . . . . 1 4 . 1 Self-Inflicted Damage 234 | 24 11 . 80 94 . . 25 . . . Shots 11 | 1 1 . 3 3 . . 3 . . . Rammed 3 | . . 1 2 . . . . . . . Targets Rammed 4 | . . 2 2 . . . . . . . Kicked . | . . . . . . . . . . . Crushed 1 | . . 1 . . . . . . . . Highest Temperature 417 | 12 30 12 144 66 . 80 234 417 113 253 Average Temperature 54 | 12 6 6 47 35 . 29 52 90 41 121 Received Heat Transfer 3089 | . 81 . 900 128 . 153 1044 450 180 153 Effects 1 | . . . . . . . . 1 . . Interference 1 | . . . . . . . . 1 . . Siege Activations . | . . . . . . . . . . . Martial Activations . | . . . . . . . . . . . Shielding Activations . | . . . . . . . . . . . Robots Disrupted 1 | . . . . . . . 1 . . . Combat Hostiles 1 | . . . . . . . 1 . . . Robots Corrupted . | . . . . . . . . . . . Combat Hostiles . | . . . . . . . . . . . Parts Fried . | . . . . . . . . . . . Impact Corruptions . | . . . . . . . . . . . Robots Melted . | . . . . . . . . . . . Combat Hostiles . | . . . . . . . . . . . Parts Melted 1 | . . . . . . . 1 . . . Heat Transferred 600 | 50 . . . . . . 250 . 300 . Parts Sabotaged . | . . . . . . . . . . . Parts Stolen . | . . . . . . . . . . . Parts Stripped . | . . . . . . . . . . . Power Chain Reactions 7 | 1 . . 1 . . . 3 1 1 . Alert | -11 -10 -10 -9 -9 -9 -8 -8 -8 -8 -8 ------- Run | Yrd Mat Min Mat Min Exi Min Mat Gar Mat Sto Maximum Alert Level 5 | . . . 3 2 . . 2 5 4 2 Low Security (%) 47 | 100 100 100 47 . . 100 50 . . . Level 1 14 | . . . 24 85 . . 22 1 . . Level 2 14 | . . . 6 14 . . 26 26 . 100 Level 3 16 | . . . 21 . . . . 37 72 . Level 4 6 | . . . . . . . . 29 27 . Level 5 . | . . . . . . . . 5 . . High Security . | . . . . . . . . . . . Max Security . | . . . . . . . . . . . Sterilizations 1 | . . . 1 . . . . . . . Peak Influence 1622 | 15 107 70 1082 420 . 98 586 1622 1406 668 Initial 790 | . . 24 20 415 . . 31 337 790 593 Average 387 | 1 27 11 343 322 . 9 225 966 1005 601 Influence Increases 7608 | 35 595 164 1680 143 . 203 1702 1525 1279 282 Destroy 0b10 Robot/C 3880 | . 260 120 1000 40 . 120 980 560 640 160 Destroy 0b10 Robot/NC 630 | 35 100 10 140 30 . 25 160 10 95 25 Destroy Leader 828 | . 60 20 258 10 . 30 232 10 164 44 Allied During Kill 167 | . . . . . . . 15 18 134 . Successful Hack 121 | . 51 5 12 . . . 16 30 4 3 Select Force Hacks 330 | . 60 . 90 . . . 90 . 90 . Disable Machine 270 | . 15 . 75 15 . . 75 45 30 15 Anti-Garrison Action 750 | . . . . . . . . 750 . . Destroy Structure 497 | . 34 9 90 48 . 13 104 102 77 20 Partial Spotted 15 | . . . . . . . 15 . . . Lose Combat Pursuer 120 | . 15 . 15 . . 15 15 . 45 15 Influence Decreases 6971 | 35 531 174 669 952 256 120 1266 422 1495 1051 Entered New Map 2859 | . . 40 34 650 256 . 52 182 832 813 Time Decay 3142 | 35 521 134 575 302 . 110 684 . 583 198 Lost Part 260 | . . . 60 . . 10 80 50 40 20 Lost Ally 110 | . 10 . . . . . . 40 40 20 Purge Threat 600 | . . . . . . . 450 150 . . Squads Dispatched 36 | . 6 . 12 . . . 8 . 9 1 Investigation 22 | . 4 . 7 . . . 5 . 6 . Extermination . | . . . . . . . . . . . Reinforcement 8 | . 2 . 1 . . . 3 . 1 1 Assault 6 | . . . 4 . . . . . 2 . Garrison . | . . . . . . . . . . . Intercept . | . . . . . . . . . . . Searches Triggered . | . . . . . . . . . . . Unchained Authorized 2 | . . . . . . . . . 1 1 Construction Impeded 3 | . . . . . . . 2 . 1 . Haulers Reinforced . | . . . . . . . . . . . Active Scanning Responses . | . . . . . . . . . . . Cargo Convoy Interrupts . | . . . . . . . . . . . Stealth | -11 -10 -10 -9 -9 -9 -8 -8 -8 -8 -8 --------- Run | Yrd Mat Min Mat Min Exi Min Mat Gar Mat Sto Distress Signals 6 | . 2 . . . . . 2 . 1 1 Communications Jammed . | . . . . . . . . . . . Distress Signals . | . . . . . . . . . . . Times Spotted 273 | . 31 5 66 10 . 8 64 31 45 13 Peak Tracking Total 8 | . 8 3 5 4 . 4 5 3 6 5 Tactical Retreats 7 | . 1 . 1 . . 1 1 . 2 1 Traps | -11 -10 -10 -9 -9 -9 -8 -8 -8 -8 -8 ------- Run | Yrd Mat Min Mat Min Exi Min Mat Gar Mat Sto Traps Triggered 18 | . 2 . 4 . . . 1 10 1 . Indirectly . | . . . . . . . . . . . Trap Hack Attempts . | . . . . . . . . . . . Triggered . | . . . . . . . . . . . Disarmed 5 | . . . . . . . 5 . . . Reprogrammed . | . . . . . . . . . . . Reused . | . . . . . . . . . . . Traps Extracted . | . . . . . . . . . . . Installed . | . . . . . . . . . . . Triggered . | . . . . . . . . . . . Machines | -11 -10 -10 -9 -9 -9 -8 -8 -8 -8 -8 ---------- Run | Yrd Mat Min Mat Min Exi Min Mat Gar Mat Sto Machines Disabled 23 | . 1 . 5 1 . . 5 8 2 1 Max in Single Turn 2 | . 1 . 2 1 . . 1 1 . 1 Garrison Relay 5 | . . . . . . . . 5 . . Machines Repaired . | . . . . . . . . . . . Machines Dismantled . | . . . . . . . . . . . Machines Sabotaged . | . . . . . . . . . . . Overloaded Fab Kills . | . . . . . . . . . . . Hacking | -11 -10 -10 -9 -9 -9 -8 -8 -8 -8 -8 --------- Run | Yrd Mat Min Mat Min Exi Min Mat Gar Mat Sto Machines Accessed 60 | . 9 2 15 1 1 . 17 5 9 1 Terminals 37 | . 6 2 10 . . . 11 5 3 . Fabricators . | . . . . . . . . . . . Repair Stations 6 | . 1 . 1 . . . 1 . 2 1 Recycling Units 8 | . 2 . 2 . . . 2 . 2 . Scanalyzers 6 | . . . 2 . . . 2 . 2 . Garrison Access 1 | . . . . . . . 1 . . . Total Hacks 229 | . 28 7 58 1 1 . 77 11 44 2 Successful 187 | . 23 3 44 1 1 . 68 8 37 2 Failed 39 | . 5 3 13 . . . 8 3 7 . Catastrophic 3 | . 1 2 . . . . . . . . Database Lockouts 3 | . . 1 1 . . . 1 . . . Manual 150 | . 19 7 43 . . . 54 6 21 . Terminals 126 | . 14 7 34 . . . 46 11 14 . Fabricators . | . . . . . . . . . . . Repair Stations 28 | . 8 . 5 . . . 6 . 7 2 Recycling Units 35 | . 6 . 10 . . . 10 . 9 . Scanalyzers 30 | . . . 9 . . . 7 . 14 . Garrison Access 8 | . . . . . . . 8 . . . Terminal Hacks 32 | . 2 1 5 1 1 . 13 6 3 . Record 1 | . . . . . 1 . . . . . Robot Analysis 8 | . 1 1 3 . . . 2 . 1 . Prototype ID Bank 4 | . . . . . . . 3 . 1 . Open Door 2 | . . . . 1 . . . 1 . . Branch Access Points 1 | . . . . . . . 1 . . . Emergency Access Points 1 | . . . . . . . . 1 . . Terminal Index 4 | . 1 . 1 . . . 1 . 1 . Unreport Threat 4 | . . . . . . . 3 1 . . Disarm Traps 1 | . . . . . . . 1 . . . Transport Status 1 | . . . . . . . 1 . . . Recall Reinforcements 1 | . . . . . . . 1 . . . Recall Assault 1 | . . . 1 . . . . . . . Garrison Registry 1 | . . . . . . . . 1 . . Patrol Navigation 1 | . . . . . . . . 1 . . Security Stations 1 | . . . . . . . . 1 . . Fabricator Hacks . | . . . . . . . . . . . Repair Station Hacks 24 | . 6 . 4 . . . 6 . 6 2 Scan Component 12 | . 3 . 2 . . . 3 . 3 1 Repair 12 | . 3 . 2 . . . 3 . 3 1 Recycling Unit Hacks 3 | . . . 1 . . . 1 . 1 . Retrieve Components 3 | . . . 1 . . . 1 . 1 . Scanalyzer 25 | . . . 8 . . . 5 . 12 . Insert Component 10 | . . . 4 . . . 2 . 4 . Analyze 13 | . . . 4 . . . 3 . 6 . Retrieve Study 2 | . . . . . . . . . 2 . Garrison Access Hacks 1 | . . . . . . . 1 . . . Unlock Access 1 | . . . . . . . 1 . . . Unauthorized Hacks 102 | . 15 2 26 . . . 42 2 15 . Terminals 61 | . 9 2 16 . . . 26 2 6 . Track 3 | . . 1 . . . . 2 . . . Assimilate 5 | . 1 . 2 . . . 2 . . . Botnet 19 | . 2 . 6 . . . 7 2 2 . Disrupt 3 | . . . 1 . . . 2 . . . Operators 7 | . 1 1 1 . . . 3 . 1 . Skim 24 | . 5 . 6 . . . 10 . 3 . Fabricators . | . . . . . . . . . . . Repair Stations 2 | . . . 1 . . . . . 1 . Patch 2 | . . . 1 . . . . . 1 . Recycling Units 28 | . 6 . 8 . . . 8 . 6 . Monitor 2 | . . . . . . . 1 . 1 . Reject 5 | . . . 2 . . . 2 . 1 . Recyclers 8 | . 2 . 2 . . . 2 . 2 . Mask 7 | . 2 . 2 . . . 2 . 1 . Tunnel 6 | . 2 . 2 . . . 1 . 1 . Scanalyzers 5 | . . . 1 . . . 2 . 2 . Extract 5 | . . . 1 . . . 2 . 2 . Garrison Access 6 | . . . . . . . 6 . . . Broadcast 1 | . . . . . . . 1 . . . Decoy 1 | . . . . . . . 1 . . . Redirect 1 | . . . . . . . 1 . . . Reprogram 1 | . . . . . . . 1 . . . Intercept 1 | . . . . . . . 1 . . . Watchers 1 | . . . . . . . 1 . . . Data Cores Recovered . | . . . . . . . . . . . Used . | . . . . . . . . . . . Hacking Detections 53 | . 9 2 14 . . . 15 4 8 1 Full Trace Events 3 | . 1 . 1 . . . 1 . . . Feedback Events 1 | . . . . . . . 1 . . . Corruption 1 | . . . . . . . 1 . . . Feedback Blocked . | . . . . . . . . . . . Robot Schematics Acquired . | . . . . . . . . . . . Robots Built . | . . . . . . . . . . . Authchips . | . . . . . . . . . . . Time . | . . . . . . . . . . . Total Robot Build Rating . | . . . . . . . . . . . Part Schematics Acquired 39 | . . . 10 . . . 14 . 15 . Parts Built . | . . . . . . . . . . . Authchips . | . . . . . . . . . . . Time . | . . . . . . . . . . . Total Part Build Rating . | . . . . . . . . . . . Part Studies Acquired 2 | . . . . . . . . . 2 . Parts Repaired 12 | . 3 . 2 . . . 3 . 3 1 Time 453 | . 90 . 102 . . . 109 . 102 50 Parts Recycled . | . . . . . . . . . . . Recycled Matter . | . . . . . . . . . . . Retrieved Matter . | . . . . . . . . . . . Retrieved Components 13 | . . . 10 . . . 2 . 1 . Parts Scanalyzed 9 | . . . 3 . . . 2 . 4 . Part Schematics Acquired 8 | . . . 3 . . . 1 . 4 . Parts Damaged 1 | . . . 1 . . . . . . . Bothacking | -11 -10 -10 -9 -9 -9 -8 -8 -8 -8 -8 ------------ Run | Yrd Mat Min Mat Min Exi Min Mat Gar Mat Sto Used RIF Installer . | . . . . . . . . . . . Robots Hacked . | . . . . . . . . . . . Non-combat . | . . . . . . . . . . . Combat . | . . . . . . . . . . . Robot Hacks Applied . | . . . . . . . . . . . Relay Couplers Released 20 | . . . . . . . . 20 . . Machine Destruction 20 | . . . . . . . . 20 . . Fabnet Peak Effective % . | . . . . . . . . . . . Robots Rewired 3 | . . . . . . . . 3 . . Allies Hacked . | . . . . . . . . . . . Hacks Repelled . | . . . . . . . . . . . Allies | -11 -10 -10 -9 -9 -9 -8 -8 -8 -8 -8 -------- Run | Yrd Mat Min Mat Min Exi Min Mat Gar Mat Sto Total Allies 9 | . 1 . 1 . . . 4 3 . . Largest Group 3 | . 1 . 1 . . . 3 3 3 1 Highest-Rated Group 98 | . 10 . 10 . . . 48 98 98 39 Highest-Rated Ally 39 | . 10 . 10 . . . 16 39 39 39 Initial Warlord ECA Mod 9 | . . . . . . . . . 9 9 Total Orders 11 | . 1 . 8 . . . . . 2 . STAY 6 | . 1 . 4 . . . . . 1 . FOLLOW 5 | . . . 4 . . . . . 1 . Ally Attacks 108 | . . . . . . . 12 19 75 2 Total Damage 1353 | . . . . . . . 128 150 1062 13 Kills 8 | . . . . . . . 1 . 7 . Allies Corrupted . | . . . . . . . . . . . Allies Melted 1 | . . . . 1 . . . . . . Intel | -11 -10 -10 -9 -9 -9 -8 -8 -8 -8 -8 ------- Run | Yrd Mat Min Mat Min Exi Min Mat Gar Mat Sto Active Infowar (turns) 1064 | 104 761 . 199 . . . . . . . Terrain 865 | 104 761 . . . . . . . . . Machine Analysis 199 | . . . 199 . . . . . . . Robot Analysis Total 8 | . 1 1 3 . . . 2 . 1 . Derelict Logs Recovered 3 | . . 3 . . . . . . . . Drone Launches . | . . . . . . . . . . . Drone Recoveries . | . . . . . . . . . . . Exploration | -11 -10 -10 -9 -9 -9 -8 -8 -8 -8 -8 ------------- Run | Yrd Mat Min Mat Min Exi Min Mat Gar Mat Sto Turns Passed 19700 | 186 2487 719 4347 678 733 1290 4496 2548 1815 401 Spaces Moved 8397 | 74 1324 398 1791 301 301 500 1962 964 661 121 Core 2 | 2 . . . . . . . . . . Treads 8395 | 72 1324 398 1791 301 301 500 1962 964 661 121 Legs . | . . . . . . . . . . . Wheels . | . . . . . . . . . . . Hover . | . . . . . . . . . . . Flight . | . . . . . . . . . . . Fastest Speed 50 | 50 160 160 160 160 240 240 160 160 160 243 Average Speed 199 | 157 160 160 202 192 240 240 189 229 237 243 Slowest Speed 480 | 160 160 160 480 240 240 240 243 240 245 243 Overloaded Moves . | . . . . . . . . . . . Propulsion Burnouts . | . . . . . . . . . . . Robots Hopped . | . . . . . . . . . . . Potential Cave-ins . | . . . . . . . . . . . Cave-ins Triggered . | . . . . . . . . . . . Exploration Rate (%) 65 | 3 97 76 97 32 58 93 96 93 44 30 Regions Visited 10 Branch Regions 5 Pre-discovered Areas 14 | . 3 . 4 . 1 . 5 . 1 . Known Exits Taken 7 | . 1 1 1 . 1 1 1 . 1 . Unknown Exits Taken 2 | 1 . . . 1 . . . . . . Scrap Searched 5 | . . 1 . 1 . 3 . . . . Spaces Dug 56 | . . 9 . 31 . 14 1 . 1 . Terrain Destroyed 401 | 6 29 9 86 76 . 14 102 19 42 18 Melee . | . . . . . . . . . . . Projectile 50 | . . . . 1 . . 17 . 14 18 AOE 351 | 6 29 9 86 75 . 14 85 19 28 . Terrain Rammed . | . . . . . . . . . . . Walls Destroyed . | . . . . . . . . . . . Machines Disabled . | . . . . . . . . . . . Actions | -11 -10 -10 -9 -9 -9 -8 -8 -8 -8 -8 --------- Run | Yrd Mat Min Mat Min Exi Min Mat Gar Mat Sto Total 10024 | 102 1562 442 2193 351 315 541 2436 1140 777 165 Wait 437 | . 95 4 108 4 . . 216 2 1 7 Move 8386 | 73 1323 397 1790 300 300 499 1961 962 660 121 Hop . | . . . . . . . . . . . Pick Up 133 | 3 22 2 41 3 8 4 31 8 9 2 Fast Attach 30 | 7 3 1 7 . . . 4 3 5 . Attach 37 | . 2 3 5 . . 3 9 4 8 3 Detach 6 | . 2 2 1 . . . . . 1 . Swap 146 | . 13 2 37 7 2 6 31 24 20 4 Drop 114 | . 14 4 34 6 5 1 28 12 10 . Fire 690 | 19 88 25 168 31 . 28 156 84 63 28 Melee . | . . . . . . . . . . . Ram . | . . . . . . . . . . . Kick . | . . . . . . . . . . . Crush 4 | . . 2 2 . . . . . . . Escape Stasis 17 | . . . . . . . . 17 . . Rewire 24 | . . . . . . . . 24 . . Trap . | . . . . . . . . . . . Miscellaneous . | . . . . . . . . . . . Route ------- -11/Scrapyard -10/Materials (discovered 6 exits: *Mat x3 / *Min x2 / *Sub) -10/Mines (discovered 3 exits: *Mat x2 / *Sub) -9/Materials (discovered 4 exits: *Mat x3 / *Min) -9/Mines (discovered 3 exits: *Mat x2 / *Exi) -9/Exiles (discovered 2 exits: *Min x2) -8/Mines (discovered 2 exits: *Mat x2) -8/Materials (discovered 5 exits: *Fac x3 / *Sto / Gar) -8/Garrison (discovered 3 exits: *Mat x3) -8/Materials (discovered 2 exits: *Fac / *Sto) -8/Storage (discovered 2 exits: Fac / Rec) History --------- Turn | Location | Event 7 | -11/Scrapyard | Discovered new exit (range 14) 187 | -11/Scrapyard | Entered Materials 301 | -10/Materials | Build established: Mutant 407 | -10/Materials | Discovered new exit (range 14) 633 | -10/Materials | Discovered new exit (range 11) 699 | -10/Materials | Discovered new exit (range 9) 969 | -10/Materials | Discovered new exit (range 13) 1290 | -10/Materials | Discovered new exit (range 13) 1740 | -10/Materials | Loaded intel: 2 recycling unit locations 1815 | -10/Materials | Identified exit to Materials 1878 | -10/Materials | Identified exit to Mines 1878 | -10/Materials | Identified exit to Subcaves 1933 | -10/Materials | Loaded intel: 25 non-interactive machine locations 1979 | -10/Materials | Learned Storage trap positions 2016 | -10/Materials | Learned Storage garrison access intel 2082 | -10/Materials | Learned 4 Recycling zone layouts 2184 | -10/Materials | Learned 2 Mines zone layouts 2395 | -10/Materials | Repaired Autogun 2422 | -10/Materials | Repaired Lgt. Treads 2456 | -10/Materials | Repaired Autogun 2674 | -10/Materials | Entered Mines 2676 | -10/Mines | Central database locked down 2705 | -10/Mines | Met a Derelict bent on vengeance 2732 | -10/Mines | A weapon hastily lodged in a ceiling crevice suddenly fell to the ground 3195 | -10/Mines | Discovered exit to Subcaves (range 9) 3393 | -10/Mines | Entered Materials 3393 | -9/Materials | Evolved 2 slots: Utility x2 3394 | -9/Materials | Identified exit to Mines 3702 | -9/Materials | Build established: Hacker-Mutant 4369 | -9/Materials | Lost 4 parts (2n1u1w) 4629 | -9/Materials | Discovered new exit (range 14) 5430 | -9/Materials | Discovered new exit (range 3) 5772 | -9/Materials | Repaired Imp. Assault Rifle 5829 | -9/Materials | Repaired Imp. Assault Rifle 5983 | -9/Materials | Central database locked down 6005 | -9/Materials | Learned Storage trap positions 6052 | -9/Materials | Learned Storage trap positions 6118 | -9/Materials | Learned location of 1 exit from Recycling 6133 | -9/Materials | Learned location of Zion (-6) 6139 | -9/Materials | Loaded intel: 3 trap records 6149 | -9/Materials | Identified exit to Materials 6168 | -9/Materials | Learned location of 1 exit from Storage 6238 | -9/Materials | Learned Storage trap positions 6593 | -9/Materials | First assault squad dispatched 7256 | -9/Materials | Sterilization system engaged 7256 | -9/Materials | Non-combat units ordered to evacuate 7356 | -9/Materials | Combat units ordered to evacuate 7556 | -9/Materials | Ambient heat levels rising (+10) 7706 | -9/Materials | Ambient heat levels rising (+10) 7740 | -9/Materials | Entered Mines 7745 | -9/Mines | Met a Derelict who couldn't figure out how to use a Trap Extractor 7803 | -9/Mines | Deemed a non-threat by the Exiles lab entrance 7803 | -9/Mines | Discovered new exit (range 5) 7856 | -9/Mines | Core integrity fell below 50% 7948 | -9/Mines | Assembled infested the area 7987 | -9/Mines | Destroyed YI-UF0 8067 | -9/Mines | Joined a pair of Derelicts in attacking an 0b10 outpost 8418 | -9/Mines | Entered Exiles 8419 | -9/Exiles | Identified exit to Mines 8454 | -9/Exiles | Discovered exit to Mines (range 15) 8483 | -9/Exiles | Met 8R-AWN 8521 | -9/Exiles | Met EX-HEX 8586 | -9/Exiles | Met EX-BIN 8615 | -9/Exiles | Met EX-DEC 9151 | -9/Exiles | Entered Mines 9586 | -8/Mines | Build established: Scavenger-Mutant 10066 | -8/Mines | Discovered exit to Materials (range 9) 10173 | -8/Mines | Discovered exit to Materials (range 13) 10441 | -8/Mines | Entered Materials 10441 | -8/Materials | Evolved 2 slots: Propulsion x1, Weapon x1 10743 | -8/Materials | Build established: Scavenger-Gunner 10952 | -8/Materials | Central database locked down 11117 | -8/Materials | Discovered new exit (range 11) 11220 | -8/Materials | Repaired Rocket Launcher 11272 | -8/Materials | Repaired Imp. Assault Rifle 11300 | -8/Materials | Repaired Lgt. Treads 11331 | -8/Materials | Identified exit to Garrison 11484 | -8/Materials | Discovered new exit (range 13) 11586 | -8/Materials | Build established: Hacker-Gunner 11621 | -8/Materials | Discovered new exit (range 7) 11790 | -8/Materials | Learned location of 1 exit from Lower Caves 11906 | -8/Materials | Learned 2 Storage zone layouts 11947 | -8/Materials | Learned 4 Factory zone layouts 12003 | -8/Materials | Learned 4 Recycling zone layouts 12037 | -8/Materials | Identified exit to Factory 12136 | -8/Materials | Learned location of 2 exits from Factory 13437 | -8/Materials | Build established: Scavenger-Tank 13627 | -8/Materials | Identified exit to Storage 13687 | -8/Materials | Learned Storage garrison access intel 13776 | -8/Materials | Learned location of 1 exit from Extension 13808 | -8/Materials | Learned Storage security intel 13844 | -8/Materials | Learned location of 1 exit from Extension 13887 | -8/Materials | Learned location of 1 exit from Recycling 14937 | -8/Materials | Entered Garrison 14937 | -8/Garrison | Accompanied by 3 allies 15015 | -8/Garrison | Triggered checkpoint 15064 | -8/Garrison | Garrison Relay disabled 15218 | -8/Garrison | Triggered checkpoint 15345 | -8/Garrison | Triggered checkpoint 15430 | -8/Garrison | Garrison Relay disabled 15519 | -8/Garrison | Discovered new exit (range 14) 15632 | -8/Garrison | Triggered checkpoint 15997 | -8/Garrison | Discovered new exit (range 13) 16063 | -8/Garrison | Triggered checkpoint 16138 | -8/Garrison | Garrison Relay disabled 16519 | -8/Garrison | Triggered checkpoint 16553 | -8/Garrison | Discovered new exit (range 13) 16664 | -8/Garrison | Discovered new exit (range 30) 16664 | -8/Garrison | Discovered new exit (range 32) 16664 | -8/Garrison | Discovered new exit (range 63) 16673 | -8/Garrison | Triggered checkpoint 16713 | -8/Garrison | Garrison Relay disabled 16882 | -8/Garrison | Learned Materials security intel 17210 | -8/Garrison | Garrison Relay disabled 17222 | -8/Garrison | Attempted to access garrison exit controls, blocked by remote lockdown 17485 | -8/Garrison | Entered Materials 17485 | -8/Materials | Accompanied by 3 allies 17906 | -8/Materials | Build established: Hacker-Gunner 18002 | -8/Materials | Repaired Assault Cannon? 18094 | -8/Materials | Repaired Flak Cannon 18272 | -8/Materials | Core integrity fell below 50% 18280 | -8/Materials | Repaired Lgt. Cannon? 18358 | -8/Materials | Discovered exit to Factory (range 5) 18685 | -8/Materials | First assault squad dispatched 18996 | -8/Materials | Unchained authorized (6S-H0T) 19210 | -8/Materials | Lost 3 parts (2n1u) 19300 | -8/Materials | Entered Storage 19300 | -8/Storage | Accompanied by 1 ally 19301 | -8/Storage | Identified exit to Recycling 19304 | -8/Storage | Loaded intel: 24 trap records 19372 | -8/Storage | Repaired Bore Cannon 19473 | -8/Storage | Build established: Tank 19523 | -8/Storage | Unchained authorized (6S-H0T) 19659 | -8/Storage | Core integrity fell below 20% 19701 | -8/Storage | Destroyed by 6S-H0T with 6S-H0T's Six Shooter Last Messages --------------- 19687_ A-02 Transporter destroyed. 19688_ Acquired 48 matter. 19692_ Acquired 2 matter. 19695_ Acquired 7 matter. 19695_ Assault Cannon+ blasted off. 19696_ 6S-H0T reloads Prototype Ballistic Gun with 6S-H0T's SS Cartridge. 19696_ K-01 Serf collects debris. 19697_ Lgt. Treads blasted off. 19697_ Imp. Ion Engine destroyed. 19697_ Hpw. Tractor Beam destroyed. 19697_ Critical hit (Blast). 19697_ Flak Cannon+ blasted off. 19697_ Slug Cannon blasted off. 19698_ 6S-H0T reloads Prototype Ballistic Gun with 6S-H0T's SS Cartridge. 6S-H0T: "You cannot escape 6S-H0T." 19698_ Discarded Hacking Suite. 19700_ 6S-H0T reloads Prototype Ballistic Gun with 6S-H0T's SS Cartridge. Map ----- +----------------------------------------------------+ | #???????????????????????????????????????????????? | | #???????????????????????????????????????????????? | | ##??????????????????????????????????????????????? | | =##??????????????????????????????????????????????? | | %##??????????????????????????????????????????????? | | =##??????????????????????????????????????????????? | | !##??????????????????????????????????????????????? | | ##?????#????????????????????????????????????????? | | /##???? ?????????????????????????????????????????? | | #####+###### #??????????????????????????????????? | | % ^^ #??????????????????????????????????? | | ^^ #?????????###??????????????????????? | | ^^ ???????? ??????????????????????? | | #"#######+###+#?#######?# #??????????????????????? | | ###???????????# ! # #??????????????????????? | | ##### ???????# #g#??????????????????????? | | # ?????# # #??????????????????????? | | #? ?# """ """ # #??????????????????????? | | #??" """?# """ """ # #??????????????????????? | | #??? """?# """ """ # #??????????????????????? | | #???? """?# #u##?????????????????????? | | #????? ?# # # ????????????????????? | | """ ########/####+###+### # ??????????? #?? | | """ ####### % ![!! #| #????????? #?? | | """ / ![ [* ]]+!! #????????? ### | | """ #### ##+####+###@# #????????? | | """ #??# # #8# #????????? ### | | #??# # # #?####????????? ##T | | ##+##### # T # #?????????????? + | | # " # ?????????????? # | | + # ?????????????? # | | ##+####### # /% # ??????????????#+###+## | | ## ##^^^^# / # ????????????? ### | | ## """ ## # # ?????????????""" #?? | | T# """ ## ########+## ????????????? " #?? | | ## """ + ????????? ????????????? " #?? | | "# ### ???????? ???????????? " ### | | # """ #?##+###+#???????###^^^^????????? " ## | | # """ #??# ?????????????????????????""" # | | # """ #??# ????????????????????????? #"" | | ## #??# ????????????????????????? #"" | | ?# """ #??# ?????????????????????????#######"" | | ?# """ #??#""" ???????????????????????????????#"" | | ?# """ #??#"R ???????????????????????????????# | | ?# #??#""" ???????????????????????????????### | | ?########??# ?????????????????????????????????? | | ???????????#####?????????????????????????????????? | | | | | | | +----------------------------------------------------+ Best States ------------- Heat Dissipation 58 Energy Generation 18 Energy Capacity 425 Matter Stores 343 Matter Capacity 450 Sight Range 16 Terrain Scan Range 16 Terrain Scan Density 10 Armor Coverage 450 Resistance: TH 10 Propulsion Shielding 66 Evasion (%) 40 Targeting Accuracy 6 Recoil Reduction 3 Offensive Hacking 30 Item Schematics ----------------- Slug Cannon | -9/Materials | Scanalyzed Cooling System | -9/Materials | Scanalyzed Rocket Launcher | -9/Materials | Scanalyzed Welding Torch | -9/Materials | Extracted Med. Battery | -9/Materials | Extracted Aluminum Leg | -9/Materials | Extracted Med. Matter Pod | -9/Materials | Extracted Com. Wheel | -9/Materials | Extracted Terrain Scan Processor | -9/Materials | Extracted Autogun | -9/Materials | Extracted Imp. Cooling System | -8/Materials | Scanalyzed Imp. Grenade Launcher | -8/Materials | Extracted Imp. Heat Sink | -8/Materials | Extracted Imp. Medium Laser | -8/Materials | Extracted Katana | -8/Materials | Extracted Lgt. Ion Engine | -8/Materials | Extracted Lrg. Matter Pod | -8/Materials | Extracted Lgt. Assault Rifle | -8/Materials | Extracted Arm. Treads | -8/Materials | Extracted Imp. Datajack | -8/Materials | Extracted Enh. Autogun | -8/Materials | Extracted Deuterium Engine | -8/Materials | Extracted Target Analyzer | -8/Materials | Extracted Grenade Launcher | -8/Materials | Extracted Recoil Stabilizer | -8/Materials | Scanalyzed Cryofiber Web | -8/Materials | Extracted Imp. Propulsion Shielding | -8/Materials | Extracted Minigun | -8/Materials | Extracted Particle Cannon | -8/Materials | Extracted Pulse Rifle | -8/Materials | Extracted Imp. Terrain Scanner | -8/Materials | Extracted Huge Storage Unit | -8/Materials | Extracted Bore Cannon | -8/Materials | Scanalyzed Lgt. Fission Core | -8/Materials | Scanalyzed Armor Integrity Analyzer | -8/Materials | Scanalyzed Field Recycling Unit | -8/Materials | Extracted Particle Charger | -8/Materials | Extracted VSS Leg | -8/Materials | Extracted Hvy. Hammer | -8/Materials | Extracted Robot Schematics ------------------ None Fabricated ------------ Nothing Repaired ---------- Autogun | 12% | -10/Materials Lgt. Treads | 72% | -10/Materials Autogun | 73% | -10/Materials Imp. Assault Rifle | 12% | -9/Materials Imp. Assault Rifle | 28% | -9/Materials Rocket Launcher | 17% | -8/Materials Imp. Assault Rifle | 50% | -8/Materials Lgt. Treads | 3% | -8/Materials Assault Cannon | 14% | -8/Materials Flak Cannon | 11% | -8/Materials Lgt. Cannon | 19% | -8/Materials Bore Cannon | 30% | -8/Storage Studied --------- Assault Cannon | -8/Materials | Hacked Flak Cannon | -8/Materials | Hacked Alien Tech Used ----------------- None Achievements -------------- None Challenges ------------ None Game ------ Seed JammingArcsightDeconstructor Manual? 0 Play Time 01:25:54 Cumulative 632.0 hours Start 2025.11.23 @ 06:41:54 End 2025.11.23 @ 08:13:00 Sessions 1 Manual Loads 0 Difficulty Rogue Special Mode None Game No. 319 Rogue 319 Adventurer 0 Explorer 0 Win Type - Total 7 Types 3/0/2/1/0/0/0/0/0/1 Lore% 87 Gallery% 78 Achievement% 47 Wizard Run 0 Options --------- Layout 2 ASCII 0 Keyboard 1 Movement Vi Keybinds 0 Fullscreen 1 Font 16/SmallcapsGlow Map View 55x47 Zoom Use 0% Tactical HUD 1 Map Filters NONE Filters NONE Steam 0 RUN: 12371d9c-d01e-46ec-94d9-0bd3637d041a